fUSD/lending_fUSD_20240210
["ID","MTS","AMOUNT","RATE_DAILY","PERIOD"]
[313710136,1707600686535,-500.0,0.00039726,30]
[313710137,1707600686544,-519.69,0.00039726,30]
[313710138,1707600686553,-627.83,0.00039726,30]
[313710139,1707600686562,-500.0,0.00039726,30]
[313710140,1707600686573,-348.08,0.00039726,30]
[313710141,1707600686582,-646.86,0.00039726,30]
[313710142,1707600686591,-427.68,0.00039726,30]
[313710143,1707600686600,-1073.3,0.00039726,30]
[313710144,1707600686610,-822.77,0.00039726,30]
[313710145,1707600686618,-500.0,0.00039726,30]
[313710146,1707600686627,-550.39,0.00039726,30]
[313710147,1707600686636,-518.97,0.00039726,30]
[313710148,1707600686645,-579.61,0.00039726,30]
[313710149,1707600686654,-517.92,0.00039726,30]
[313710150,1707600686664,-500.0,0.00039726,30]
[313710151,1707600686674,-704.93,0.00039726,30]
[313710152,1707600686683,-956.96,0.00039726,30]
[313710153,1707600686693,-500.0,0.00039726,30]
[313710154,1707600686702,-500.0,0.00039726,30]
[313710155,1707600686711,-578.55,0.00039726,30]
[313710156,1707600686720,-500.0,0.00039726,2]
[313710157,1707600686730,-856.73,0.00039726,30]
[313710158,1707600686739,-640.04,0.00039726,30]
[313710159,1707600686748,-776.41,0.00039726,2]
[313710160,1707600686757,-513.26,0.00039726,30]
[313710161,1707600686766,-963.84,0.00039726,30]
[313710162,1707600686775,-518.12,0.00039726,30]
[313710163,1707600686784,-534.91312005,0.00039726,30]
[313710164,1707600686793,-767.28,0.00039726,30]
[313710165,1707600686803,-554.4,0.00039726,30]
[313710166,1707600686812,-500.0,0.00039726,30]
[313710167,1707600686822,-500.0,0.00039726,30]
[313710168,1707600686833,-754.28,0.00039726,30]
[313710169,1707600686842,-1007.77,0.00039726,30]
[313710170,1707600686851,-500.0,0.00039726,30]
[313710171,1707600686861,-500.0,0.00039726,30]
[313710172,1707600686870,-198.81215917,0.00039726,30]
[313710173,1707600686880,-1392.5,0.00039726,30]
[313710174,1707600686889,-696.89,0.00039726,30]
[313710175,1707600686898,-500.0,0.00039726,30]
[313710176,1707600686907,-509.23,0.00039726,30]
[313710177,1707600686916,-1033.01,0.00039726,30]
[313710178,1707600686926,-589.39,0.00039726,30]
[313710179,1707600686935,-1048.7,0.00039726,30]
[313710180,1707600686944,-558.2,0.00039726,30]
[313710181,1707600686953,-727.43,0.00039726,30]
[313710182,1707600686963,-500.0,0.00039726,30]
[313710183,1707600686972,-950.33,0.00039726,30]
[313710184,1707600686981,-500.0,0.00039726,30]
[313710185,1707600686990,-677.42,0.00039726,30]
[313710186,1707600686998,-1083.34,0.00039726,30]
[313710187,1707600687008,-868.45,0.00039726,30]
[313710188,1707600687016,-500.0,0.00039726,30]
[313710189,1707600687026,-1123.28,0.00039726,30]
[313710190,1707600687035,-724.69,0.00039726,30]
[313710191,1707600687044,-259.88350146,0.00039726,30]
[313710192,1707600687053,-500.0,0.00039726,30]
[313710193,1707600687062,-575.35,0.00039726,30]
[313710194,1707600687229,-1166.32,0.00039726,30]
[313710195,1707600687239,-500.0,0.00039726,30]
[313710196,1707600687249,-1041.2,0.00039726,30]
[313710197,1707600687262,-500.0,0.00039726,30]
[313710198,1707600687271,-500.0,0.00039726,30]
[313710199,1707600687281,-1100.61,0.00039726,30]
[313710200,1707600687290,-629.33,0.00039726,30]
[313710201,1707600687299,-1153.81,0.00039726,30]
[313710202,1707600687308,-534.05,0.00039726,30]
[313710203,1707600687319,-500.0,0.00039726,30]
[313710204,1707600687328,-561.58,0.00039726,30]
[313710205,1707600687338,-500.0,0.00039726,30]
[313710206,1707600687347,-500.0,0.00039726,30]
[313710207,1707600687356,-500.0,0.00039726,30]
[313710208,1707600687366,-500.0,0.00039726,30]
[313710209,1707600687375,-500.0,0.00039726,30]
[313710210,1707600687384,-500.0,0.00039726,30]
[313710211,1707600687393,-570.53,0.00039726,30]
[313710212,1707600687403,-500.0,0.00039726,30]
[313710213,1707600687412,-500.0,0.00039726,30]
[313710214,1707600687422,-536.06690415,0.00039726,30]
[313710215,1707600687432,-500.0,0.00039726,30]
[313710216,1707600687441,-555.09,0.00039726,30]
[313710217,1707600687450,-500.0,0.00039726,30]
[313710218,1707600687460,-500.0,0.00039726,30]
[313710219,1707600687469,-500.0,0.00039726,30]
[313710220,1707600687479,-500.0,0.00039726,30]
[313710221,1707600687489,-663.95,0.00039726,2]
[313710222,1707600687498,-500.0,0.00039726,30]
[313710223,1707600687507,-500.0,0.00039726,30]
[313710224,1707600687516,-500.0,0.00039726,30]
[313710225,1707600687526,-325.64,0.00039726,30]
[313710226,1707600687536,-594.35,0.00039726,30]
[313710227,1707600687547,-500.0,0.00039726,30]
[313710228,1707600687556,-500.0,0.00039726,30]
[313710229,1707600687566,-688.89,0.00039726,30]
[313710230,1707600687580,-651.25,0.00039726,30]
[313710231,1707600687589,-528.26,0.00039726,30]
[313710232,1707600687599,-1063.32,0.00039726,30]
[313710233,1707600687608,-500.0,0.00039726,30]
[313710234,1707600687617,-500.0,0.00039726,30]
[313710235,1707600687627,-506.34,0.00039726,30]
[313710236,1707600687636,-519.82,0.00039726,30]
[313710237,1707600687646,-500.0,0.00039726,30]
[313710238,1707600687655,-500.0,0.00039726,30]
[313710239,1707600687664,-783.01,0.00039726,30]
[313710240,1707600687674,-500.0,0.00039726,30]
[313710241,1707600687683,-500.0,0.00039726,30]
[313710242,1707600687693,-500.0,0.00039726,30]
[313710243,1707600687701,-500.0,0.00039726,30]
[313710244,1707600687711,-543.5,0.00039726,30]
[313710245,1707600687720,-500.0,0.00039726,30]
[313710246,1707600687730,-500.0,0.00039726,30]
[313710247,1707600687739,-150.0,0.00039726,30]
[313710248,1707600687749,-500.0,0.00039726,30]
[313710249,1707600687760,-500.0,0.00039726,30]
[313710250,1707600687770,-500.0,0.00039726,30]
[313710251,1707600687780,-500.0,0.00039726,30]
[313710252,1707600687790,-500.66,0.00039726,30]
[313710253,1707600687799,-500.0,0.00039726,30]
[313710254,1707600687808,-814.81,0.00039726,2]
[313710255,1707600687821,-500.0,0.00039726,30]
[313710256,1707600687830,-500.0,0.00039726,30]
[313710257,1707600687840,-621.57,0.00039726,30]
[313710258,1707600687849,-567.32,0.00039726,30]
[313710259,1707600687859,-500.0,0.00039726,30]
[313710260,1707600687870,-500.0,0.00039726,30]
[313710261,1707600687879,-500.0,0.00039726,30]
[313710262,1707600687888,-745.07,0.00039726,30]
[313710263,1707600687898,-500.0,0.00039726,30]
[313710264,1707600687908,-522.8,0.00039726,30]
[313710265,1707600687917,-500.0,0.00039726,30]
[313710266,1707600687927,-500.0,0.00039726,30]
[313710267,1707600687939,-333.78985404,0.00039726,30]
[313710268,1707600687949,-868.65,0.00039726,30]
[313710269,1707600687959,-643.45,0.00039726,30]
[313710270,1707600687968,-612.95,0.00039726,30]
[313710271,1707600687978,-506.8,0.00039726,30]
[313710272,1707600687987,-183.06,0.00039726,30]
[313710273,1707600687996,-500.0,0.00039726,30]
[313710274,1707600688005,-500.0,0.00039726,30]
[313710275,1707600688015,-500.0,0.00039726,30]
[313710276,1707600688025,-1056.57,0.00039726,30]
[313710277,1707600688034,-500.0,0.00039726,30]
[313710278,1707600688043,-706.37,0.00039726,30]
[313710279,1707600688052,-500.0,0.00039726,30]
[313710280,1707600688062,-529.24,0.00039726,30]
[313710281,1707600688074,-500.0,0.00039726,30]
[313710282,1707600688083,-500.0,0.00039726,30]
[313710283,1707600688093,-500.0,0.00039726,30]
[313710284,1707600688103,-502.19,0.00039726,30]
[313710285,1707600688112,-500.0,0.00039726,30]
[313710286,1707600688121,-500.0,0.00039726,30]
[313710287,1707600688130,-500.0,0.00039726,30]
[313710288,1707600688139,-500.0,0.00039726,30]
[313710289,1707600688149,-706.86,0.00039726,30]
[313710290,1707600688158,-500.0,0.00039726,30]
[313710291,1707600688167,-541.66,0.00039726,30]
[313710292,1707600688177,-515.6,0.00039726,30]
[313710293,1707600688186,-500.0,0.00039726,30]
[313710294,1707600688195,-500.0,0.00039726,30]
[313710295,1707600688204,-500.0,0.00039726,30]
[313710296,1707600688213,-1115.3,0.00039726,30]
[313710297,1707600688223,-500.0,0.00039726,30]
[313710298,1707600688232,-503.68,0.00039726,30]
[313710299,1707600688241,-500.0,0.00039726,30]
[313710300,1707600688251,-1282.41,0.00039726,30]
[313710301,1707600688264,-591.92,0.00039726,30]
[313710302,1707600688274,-586.04,0.00039726,30]
[313710303,1707600688284,-500.0,0.00039726,30]
[313710304,1707600688293,-500.0,0.00039726,30]
[313710305,1707600688303,-284.2627503,0.00039726,30]
[313710306,1707600688313,-500.0,0.00039726,30]
[313710307,1707600688324,-500.0,0.00039726,30]
[313710308,1707600688335,-500.0,0.00039726,30]
[313710309,1707600688345,-500.0,0.00039726,30]
[313710310,1707600688354,-500.0,0.00039726,30]
[313710311,1707600688364,-500.0,0.00039726,30]
[313710312,1707600688373,-500.0,0.00039726,30]
[313710313,1707600688384,-500.0,0.00039726,30]
[313710314,1707600688395,-500.0,0.00039726,30]
[313710315,1707600688404,-500.0,0.00039726,30]
[313710316,1707600688414,-754.78,0.00039726,30]
[313710317,1707600688424,-500.0,0.00039726,30]
[313710318,1707600688433,-500.0,0.00039726,30]
[313710319,1707600688442,-500.0,0.00039726,30]
[313710320,1707600688452,-527.18,0.00039726,30]
[313710321,1707600688461,-500.0,0.00039726,30]
[313710322,1707600688480,-250.0,0.00039726,30]
[313710323,1707600688490,-500.0,0.00039726,30]
[313710324,1707600688499,-500.0,0.00039726,30]
[313710325,1707600688509,-313.40758347,0.00039726,30]
[313710326,1707600688518,-500.0,0.00039726,30]
[313710327,1707600688527,-268.35582307,0.00039726,30]
[313710328,1707600688536,-500.0,0.00039726,30]
[313710329,1707600688546,-500.0,0.00039726,30]
[313710330,1707600688555,-500.0,0.00039726,30]
[313710331,1707600688565,-500.0,0.00039726,30]
[313710332,1707600688577,-510.48,0.00039726,30]
[313710333,1707600688586,-500.0,0.00039726,30]
[313710334,1707600688596,-500.0,0.00039726,30]
[313710335,1707600688605,-500.0,0.00039726,30]
[313710336,1707600688614,-500.0,0.00039726,30]
[313710337,1707600688624,-500.0,0.00039726,30]
[313710338,1707600688633,-500.0,0.00039726,30]
[313710339,1707600688643,-500.0,0.00039726,30]
[313710340,1707600688652,-1004.34,0.00039726,30]
[313710341,1707600688661,-500.0,0.00039726,30]
[313710342,1707600688671,-500.0,0.00039726,30]
[313710343,1707600688680,-500.0,0.00039726,30]
[313710344,1707600688691,-500.0,0.00039726,30]
[313710345,1707600688701,-500.0,0.00039726,30]
[313710346,1707600688711,-974.28,0.00039726,30]
[313710347,1707600688720,-1028.04,0.00039726,30]
[313710348,1707600688728,-500.0,0.00039726,30]
[313710349,1707600688738,-500.0,0.00039726,30]
[313710350,1707600688748,-260.69,0.00039726,30]
[313710351,1707600688757,-1354.3,0.00039726,30]
[313710352,1707600688767,-1248.46,0.00039726,30]
[313710353,1707600688777,-500.0,0.00039726,30]
[313710354,1707600688786,-500.0,0.00039726,30]
[313710355,1707600688795,-500.0,0.00039726,30]
[313710356,1707600688804,-500.0,0.00039726,30]
[313710357,1707600688813,-500.0,0.00039726,30]
[313710358,1707600688824,-2698.96,0.00039726,30]
[313710359,1707600688833,-500.0,0.00039726,30]
[313710360,1707600688843,-500.0,0.00039726,30]
[313710361,1707600688852,-500.0,0.00039726,30]
[313710362,1707600688870,-773.31,0.00039726,30]
[313710363,1707600688879,-500.0,0.00039726,30]
[313710364,1707600688888,-1020.08,0.00039726,30]
[313710365,1707600688897,-1468.67,0.00039726,30]
[313710366,1707600688915,-500.0,0.00039726,30]
[313710367,1707600688931,-500.0,0.00039726,30]
[313710368,1707600688940,-500.0,0.00039726,30]
[313710369,1707600688949,-1648.08,0.00039726,30]
[313710370,1707600688958,-500.0,0.00039726,30]
[313710371,1707600688967,-500.0,0.00039726,30]
[313710372,1707600688977,-500.0,0.00039726,30]
[313710373,1707600688989,-1006.27,0.00039726,30]
[313710374,1707600688999,-707.87,0.00039726,30]
[313710375,1707600689010,-500.0,0.00039726,30]
[313710376,1707600689019,-835.37,0.00039726,30]
[313710377,1707600689028,-500.0,0.00039726,30]
[313710378,1707600689037,-500.0,0.00039726,30]
[313710379,1707600689047,-585.55,0.00039726,30]
[313710380,1707600689057,-500.0,0.00039726,30]
[313710381,1707600689067,-615.65,0.00039726,30]
[313710382,1707600689078,-500.0,0.00039726,30]
[313710383,1707600689087,-500.0,0.00039726,30]
[313710384,1707600689097,-710.1,0.00039726,30]
[313710385,1707600689106,-500.0,0.00039726,30]
[313710386,1707600689116,-637.4,0.00039726,30]
[313710387,1707600689125,-500.0,0.00039726,30]
[313710388,1707600689134,-500.0,0.00039726,30]
[313710389,1707600689143,-500.0,0.00039726,30]
[313710390,1707600689153,-632.23,0.00039726,30]
[313710391,1707600689162,-500.0,0.00039726,30]
[313710392,1707600689171,-1130.03,0.00039726,30]
[313710393,1707600689181,-2012.7,0.00039726,30]
[313710394,1707600689190,-500.0,0.00039726,30]
[313710395,1707600689201,-676.8,0.00039726,30]
[313710396,1707600689210,-500.0,0.00039726,30]
[313710397,1707600689220,-500.0,0.00039726,30]
[313710398,1707600689229,-1151.47,0.00039726,5]
[313710399,1707600689244,-500.0,0.00039726,30]
[313710400,1707600689254,-500.0,0.00039726,30]
[313710401,1707600689263,-1433.03,0.00039726,30]
[313710402,1707600689273,-500.0,0.00039726,30]
[313710403,1707600689283,-500.0,0.00039726,30]
[313710404,1707600689293,-500.0,0.00039726,30]
[313710405,1707600689302,-500.0,0.00039726,30]
[313710406,1707600689312,-996.61,0.00039726,30]
[313710407,1707600689321,-1675.21,0.00039726,30]
[313710408,1707600689331,-500.0,0.00039726,30]
[313710409,1707600689341,-500.0,0.00039726,30]
[313710410,1707600689351,-500.0,0.00039726,30]
[313710411,1707600689360,-500.0,0.00039726,30]
[313710412,1707600689370,-500.0,0.00039726,30]
[313710413,1707600689379,-607.37,0.00039726,2]
[313710414,1707600689389,-201.83605023,0.00039726,30]
[313710415,1707600689399,-891.28,0.00039726,30]
[313710416,1707600689409,-786.75,0.00039726,30]
[313710417,1707600689418,-346.96954209,0.00039726,30]
[313710418,1707600689428,-1992.36,0.00039726,30]
[313710419,1707600689437,-981.14,0.00039726,30]
[313710420,1707600689447,-1948.74,0.00039726,30]
[313710421,1707600689456,-1000.0,0.00039726,120]
[313710422,1707600689465,-500.0,0.00039726,30]
[313710423,1707600689475,-1915.67,0.00039726,30]
[313710424,1707600689484,-500.0,0.00039726,30]
[313710425,1707600689493,-1571.66,0.00039726,30]
[313710426,1707600689504,-500.0,0.00039726,30]
[313710427,1707600689514,-500.0,0.00039726,30]
[313710428,1707600689524,-1107.45,0.00039726,30]
[313710429,1707600689533,-1093.86,0.00039726,30]
[313710430,1707600689543,-832.17,0.00039726,30]
[313710431,1707600689553,-548.12,0.00039726,30]
[313710432,1707600689562,-670.83,0.00039726,30]
[313710433,1707600689572,-500.0,0.00039726,30]
[313710434,1707600689582,-2135.62,0.00039726,30]
[313710435,1707600689776,-576.13,0.00039726,30]
[313710436,1707600689786,-508.53,0.00039726,30]
[313710437,1707600689795,-500.0,0.00039726,30]
[313710438,1707600689804,-2075.8,0.00039726,30]
[313710439,1707600689813,-637.94,0.00039726,30]
[313710440,1707600689824,-500.0,0.00039726,30]
[313710441,1707600689833,-500.0,0.00039726,30]
[313710442,1707600689842,-500.0,0.00039726,30]
[313710443,1707600689853,-500.0,0.00039726,30]
[313710444,1707600689862,-500.0,0.00039726,30]
[313710445,1707600689873,-500.0,0.00039726,30]
[313710446,1707600689883,-1381.72,0.00039726,30]
[313710447,1707600689893,-1098.0,0.00039726,30]
[313710448,1707600689902,-500.0,0.00039726,30]
[313710449,1707600689912,-952.74,0.00039726,30]
[313710450,1707600689922,-500.0,0.00039726,30]
[313710451,1707600689931,-2884.06,0.00039726,30]
[313710452,1707600689941,-500.0,0.00039726,30]
[313710453,1707600689950,-746.11,0.00039726,30]
[313710454,1707600689960,-857.11,0.00039726,30]
[313710455,1707600689970,-500.0,0.00039726,30]
[313710456,1707600689979,-695.59,0.00039726,30]
[313710457,1707600689989,-500.0,0.00039726,30]
[313710458,1707600689999,-500.0,0.00039726,30]
[313710459,1707600690009,-566.08,0.00039726,30]
[313710460,1707600690018,-2276.89,0.00039726,30]
[313710461,1707600690027,-775.52,0.00039726,30]
[313710462,1707600690036,-1726.49,0.00039726,30]
[313710463,1707600690046,-500.0,0.00039726,30]
[313710464,1707600690055,-500.0,0.00039726,30]
[313710465,1707600690064,-2588.33,0.00039726,30]
[313710466,1707600690074,-500.0,0.00039726,30]
[313710467,1707600690084,-500.0,0.00039726,30]
[313710468,1707600690094,-992.81,0.00039726,30]
[313710469,1707600690103,-735.3,0.00039726,30]
[313710470,1707600690112,-722.45,0.00039726,30]
[313710471,1707600690121,-1365.09,0.00039726,30]
[313710472,1707600690130,-500.0,0.00039726,30]
[313710473,1707600690139,-558.14,0.00039726,30]
[313710474,1707600690149,-720.53,0.00039726,30]
[313710475,1707600690158,-754.42,0.00039726,30]
[313710476,1707600690168,-500.0,0.00039726,30]
[313710477,1707600690177,-500.0,0.00039726,30]
[313710478,1707600690186,-785.13,0.00039726,30]
[313710479,1707600690196,-500.0,0.00039726,30]
[313710480,1707600690205,-563.06,0.00039726,30]
[313710481,1707600690215,-500.0,0.00039726,30]
[313710482,1707600690224,-856.56,0.00039726,30]
[313710483,1707600690234,-1575.36,0.00039726,30]
[313710484,1707600690244,-500.0,0.00039726,30]
[313710485,1707600690254,-879.65,0.00039726,30]
[313710486,1707600690264,-1156.76,0.00039726,30]
[313710487,1707600690273,-1679.59,0.00039726,30]
[313710488,1707600690283,-657.74,0.00039726,30]
[313710489,1707600690292,-3208.55,0.00039726,30]
[313710490,1707600690302,-500.0,0.00039726,30]
[313710491,1707600690311,-1168.11,0.00039726,30]
[313710492,1707600690322,-679.77,0.00039726,30]
[313710493,1707600690333,-926.77,0.00039726,30]
[313710494,1707600690343,-2025.45,0.00039726,30]
[313710495,1707600690353,-500.0,0.00039726,30]
[313710496,1707600690362,-500.0,0.00039726,30]
[313710497,1707600690371,-500.0,0.00039726,30]
[313710498,1707600690381,-1043.64,0.00039726,30]
[313710499,1707600690391,-552.04,0.00039726,30]
[313710500,1707600690400,-500.0,0.00039726,30]
[313710501,1707600690410,-500.0,0.00039726,30]
[313710502,1707600690420,-500.0,0.00039726,30]
[313710503,1707600690429,-1154.1,0.00039726,30]
[313710504,1707600690438,-500.0,0.00039726,30]
[313710505,1707600690448,-989.31,0.00039726,30]
[313710506,1707600690458,-505.23,0.00039726,30]
[313710507,1707600690467,-2027.94,0.00039726,30]
[313710508,1707600690478,-603.46,0.00039726,30]
[313710509,1707600690487,-500.0,0.00039726,30]
[313710510,1707600690498,-761.12,0.00039726,30]
[313710511,1707600690506,-500.0,0.00039726,30]
[313710512,1707600690517,-2891.76,0.00039726,30]
[313710513,1707600690527,-500.0,0.00039726,30]
[313710514,1707600690536,-541.0,0.00039726,30]
[313710515,1707600690545,-500.0,0.00039726,30]
[313710516,1707600690555,-500.0,0.00039726,30]
[313710517,1707600690565,-500.0,0.00039726,30]
[313710518,1707600690576,-2770.93,0.00039726,30]
[313710519,1707600690585,-500.0,0.00039726,30]
[313710520,1707600690595,-500.0,0.00039726,30]
[313710521,1707600690605,-1243.29,0.00039726,30]
[313710522,1707600690614,-500.0,0.00039726,30]
[313710523,1707600690624,-579.05,0.00039726,30]
[313710524,1707600690633,-500.0,0.00039726,30]
[313710525,1707600690642,-1118.7,0.00039726,30]
[313710526,1707600690651,-500.0,0.00039726,30]
[313710527,1707600690661,-500.0,0.00039726,30]
[313710528,1707600690671,-614.47,0.00039726,30]
[313710529,1707600690680,-500.0,0.00039726,30]
[313710530,1707600690690,-500.0,0.00039726,30]
[313710531,1707600690699,-774.48,0.00039726,30]
[313710532,1707600690708,-833.42,0.00039726,30]
[313710533,1707600690718,-500.0,0.00039726,30]
[313710534,1707600690727,-500.0,0.00039726,30]
[313710535,1707600690737,-1903.16,0.00039726,30]
[313710536,1707600690746,-712.27,0.00039726,30]
[313710537,1707600690755,-500.0,0.00039726,30]
[313710538,1707600690765,-776.19,0.00039726,30]
[313710539,1707600690775,-500.0,0.00039726,30]
[313710540,1707600690784,-500.0,0.00039726,30]
[313710541,1707600690794,-500.0,0.00039726,30]
[313710542,1707600690804,-793.0,0.00039726,30]
[313710543,1707600690814,-819.96,0.00039726,30]
[313710544,1707600690826,-500.0,0.00039726,30]
[313710545,1707600690835,-500.0,0.00039726,30]
[313710546,1707600690858,-835.83,0.00039726,30]
[313710547,1707600690877,-500.0,0.00039726,30]
[313710548,1707600690896,-604.75,0.00039726,30]
[313710549,1707600690916,-500.0,0.00039726,30]
[313710550,1707600690933,-521.81,0.00039726,30]
[313710551,1707600690951,-500.0,0.00039726,30]
[313710552,1707600690968,-500.0,0.00039726,30]
[313710553,1707600690986,-4366.6672258,0.00039726,2]
[313710554,1707600691004,-666.09,0.00039726,30]
[313710555,1707600691023,-1439.11,0.00039726,30]
[313710556,1707600691043,-500.0,0.00039726,30]
[313710557,1707600691063,-1762.95,0.00039726,30]
[313710558,1707600691077,-500.0,0.00039726,30]
[313710559,1707600691094,-1507.87,0.00039726,30]
[313710560,1707600691109,-500.0,0.00039726,30]
[313710561,1707600691125,-1220.74,0.00039726,30]
[313710562,1707600691141,-500.0,0.00039726,30]
[313710563,1707600691155,-1071.55,0.00039726,30]
[313710564,1707600691171,-500.0,0.00039726,30]
[313710565,1707600691187,-1158.55,0.00039726,30]
[313710566,1707600691203,-500.0,0.00039726,30]
[313710567,1707600691217,-576.97,0.00039726,30]
[313710568,1707600691233,-500.0,0.00039726,5]
[313710569,1707600691249,-2544.48,0.00039726,30]
[313710570,1707600691265,-891.22,0.00039726,30]
[313710571,1707600691280,-526.32,0.00039726,30]
[313710572,1707600691296,-500.0,0.00039726,30]
[313710573,1707600691311,-1206.55,0.00039726,30]
[313710574,1707600691328,-777.02,0.00039726,30]
[313710575,1707600691343,-816.89,0.00039726,30]
[313710576,1707600691358,-500.0,0.00039726,30]
[313710577,1707600691373,-1195.77,0.00039726,30]
[313710578,1707600691387,-500.0,0.00039726,30]
[313710579,1707600691402,-500.0,0.00039726,30]
[313710580,1707600691416,-714.43,0.00039726,30]
[313710581,1707600691431,-500.0,0.00039726,30]
[313710582,1707600691446,-500.0,0.00039726,30]
[313710583,1707600691462,-2109.4,0.00039726,30]
[313710584,1707600691477,-518.1,0.00039726,30]
[313710585,1707600691494,-155.0,0.00039727,2]
[313710586,1707600691509,-155.01257736,0.00039736,7]
[313710587,1707600691524,-162.21957199,0.00039737,10]
[313710588,1707600691539,-295.74186583,0.00039737,10]
[313710589,1707600691555,-195.02940265,0.00039737,10]
[313710590,1707600691570,-215.52454685,0.00039737,10]
[313710591,1707600691585,-4122.0297238,0.00039753,2]
[313710592,1707600691599,-3827.7815653,0.00039753,2]
[313710593,1707600691615,-2368.4807056,0.00039753,2]
[313710594,1707600691630,-2193.1156615,0.00039753,2]
[313710595,1707600691645,-19729.0163342,0.00039753,2]
[313710596,1707600691660,-18268.2572029,0.00039753,2]
[313710597,1707600691675,-26372.8536808,0.00039753,2]
[313710598,1707600691689,-24664.5094329,0.00039753,2]
[313710599,1707600691703,-4885.18922,0.00039753,2]
[313710600,1707600691717,-557.74133779,0.0003977,7]
[313710601,1707600691732,-230.99215481,0.0003977,2]
[313710602,1707600691748,-1473515.47212041,0.0003978,2]
[313710603,1707600691763,-5754.36447641,0.0003978,2]
[313710604,1707600691778,-151.00406409,0.00039785,30]
[313710605,1707600691792,-3869.0,0.0003979,2]
[313710606,1707600691807,-2088.0,0.0003979,2]
[313710607,1707600691822,-449.88921908,0.000398,10]
[313710608,1707600691836,-200.0,0.000398,14]
[313710609,1707600691850,-300.0,0.000398,14]
[313710610,1707600691864,-150.0,0.000398,11]
[313710611,1707600691879,-155.01257736,0.00039801,7]
[313710612,1707600691893,-100218.34203235,0.0003982,7]
[313710613,1707600691907,-153.7803214,0.00039826,7]
[313710614,1707600691924,-153.7803214,0.00039835,7]
[313710615,1707600691946,-124223.72768004,0.00039879,2]
[313710616,1707600691965,-16413.0,0.0003989,2]
[313710617,1707600691980,-8211.0,0.0003989,2]
[313710618,1707600691996,-753.0,0.0003989,3]
[313710619,1707600692011,-153.7803214,0.00039891,7]
[313710620,1707600692035,-352.83821621,0.00039898,4]
[313710621,1707600692050,-54868.12937854,0.000399,2]
[313710622,1707600692065,-1266.0,0.000399,14]
[313710623,1707600692079,-197262.41658122,0.0003994,2]
[313710624,1707600692094,-150.0,0.00039942,2]
[313710625,1707600692110,-207.0,0.00039947,19]
[313710626,1707600692124,-6265.55,0.00039956,7]
[313710627,1707600692139,-6265.55,0.00039956,7]
[313710628,1707600692154,-617.67848666,0.00039962,10]
[313710629,1707600692169,-994.33124493,0.00039962,10]
[313710630,1707600692184,-1000.0,0.00039962,10]
[313710631,1707600692200,-1000.0,0.00039962,10]
[313710632,1707600692215,-173.12284375,0.00039962,10]
[313710633,1707600692230,-949.99999999,0.00039962,10]
[313710634,1707600692245,-168.07883262,0.00039962,10]
[313710635,1707600692263,-580.7984459,0.00039962,10]